bitfinex/quotes_ETHUSD_20250314
["timestamp","ask_amount","ask_price","bid_price","bid_amount"]
[1741965386287,0.7514,1935.7,1935.3,10.33413]
[1741965386436,0.05148655,1935.6,1935.2,5.16739]
[1741965386783,5.16696,1935.4,1935.0,5.16793]
[1741965387078,5.16696,1935.4,1935.0,13.33558]
[1741965387079,5.21844655,1935.4,1935.0,13.33558]
[1741965387274,5.21844655,1935.4,1935.0,8.16778]
[1741965387476,5.16637,1935.6,1935.1,5.16744]
[1741965387635,5.16637,1935.6,1935.2,5.16732]
[1741965387839,0.7514,1935.7,1935.5,5.16647]
[1741965388072,0.7994,1935.9,1935.7,5.16602]
[1741965388278,0.7994,1935.9,1935.6,10.33256]
[1741965388474,5.21730655,1935.8,1935.4,8.16687]
[1741965388768,5.96495,1935.9,1935.5,5.16661]
[1741965388979,5.16621,1935.7,1935.3,8.16713]
[1741965389134,0.7994,1935.9,1935.5,5.16648]
[1741965389335,0.7994,1935.9,1935.6,5.16623]
[1741965389560,5.21745655,1935.8,1935.4,5.16681]
[1741965389771,0.05148655,1935.8,1935.5,8.1665]
[1741965389947,5.16585,1935.8,1935.5,3.0]
[1741965390274,5.21733655,1935.8,1935.5,3.0]
[1741965390569,5.21733655,1935.8,1935.3,3.0]
[1741965390570,5.16608,1935.7,1935.3,3.0]
[1741965390745,0.7622,1935.5,1934.9,5.16814]
[1741965390946,0.05148655,1935.4,1934.8,6.2048002]
[1741965391163,0.05148655,1935.4,1935.0,5.1679]
[1741965391364,5.92886,1935.5,1935.1,5.16756]
[1741965391673,0.7622,1935.5,1935.2,0.05167369]
[1741965391858,0.7622,1935.5,1934.9,0.55]
[1741965392043,0.7622,1935.5,1935.2,5.1674]
[1741965392244,0.7678,1935.7,1935.4,5.16677]
[1741965392482,5.16539,1936.0,1935.3,3.6459]
[1741965392768,0.7791,1935.7,1935.5,3.0]
[1741965392961,0.7791,1935.7,1935.4,5.16686]
[1741965392962,5.99667655,1935.7,1935.3,8.16702]
[1741965393462,5.16567,1935.9,1935.5,8.1664]
[1741965393664,5.16567,1935.9,1935.7,3.0]
[1741965393665,0.7791,1935.9,1935.7,3.0]
[1741965393841,0.7791,1935.9,1935.5,8.16653]
[1741965394042,5.16612,1935.7,1935.3,8.55606955]
[1741965394341,0.7791,1935.9,1935.5,8.16657]
[1741965394342,5.99615655,1935.9,1935.5,8.16657]
[1741965394793,5.99622655,1935.9,1935.5,8.16646]
[1741965395090,0.83058655,1935.9,1935.3,8.16711]
[1741965395238,0.8287,1936.2,1935.7,8.16603]
[1741965395568,5.99278,1936.5,1936.1,5.16492]
[1741965395767,0.05148655,1936.4,1936.1,5.16492]
[1741965395966,0.05148655,1936.4,1935.9,5.1653]
[1741965396278,5.91406,1936.8,1936.4,3.0]
[1741965396438,5.16383,1936.6,1936.2,3.0]
[1741965396643,0.05148655,1936.5,1936.2,8.16472]
[1741965396870,5.91398,1936.8,1936.4,8.16406]
[1741965397073,5.91398,1936.8,1936.1,0.25774844]
[1741965397074,0.05148655,1936.7,1936.2,5.16457]
[1741965397271,5.1638,1936.6,1936.4,3.0]
[1741965397476,5.21554655,1936.5,1936.1,8.16495]
[1741965397684,0.8223,1936.4,1936.1,8.16495]
[1741965397991,5.16322,1936.8,1936.2,5.16464]
[1741965398143,0.01,1936.9,1936.4,3.0]
[1741965398144,0.7905,1936.7,1936.4,3.0]
[1741965398452,0.05148655,1936.8,1936.4,3.0]
[1741965398658,0.06148655,1936.9,1936.2,5.16474]
[1741965398850,10.32775,1936.6,1936.2,5.16474]
[1741965399051,0.05148655,1936.5,1936.2,5.16464]
[1741965399250,5.21492655,1936.7,1936.2,5.16464]
[1741965399446,6.00516655,1936.8,1936.4,5.16411]
[1741965399672,0.84198655,1936.8,1936.2,0.516464]
[1741965400051,0.7905,1936.8,1936.6,5.16356]
[1741965400255,0.01,1936.9,1936.6,3.05163452]
[1741965400463,0.01,1936.9,1936.6,5.16368]
[1741965400654,0.06148655,1936.9,1936.6,3.516368]
[1741965400879,0.01,1936.9,1936.7,5.16325]
[1741965401281,0.8338,1936.9,1936.6,3.0]
[1741965401687,0.88528655,1936.9,1936.6,3.0]
[1741965401893,0.88528655,1936.9,1936.6,8.16367]
[1741965402074,0.8338,1936.9,1936.6,8.16367]
[1741965402257,0.8338,1936.9,1936.7,5.16341]
[1741965402452,0.01,1936.9,1936.7,5.21488155]
[1741965402657,0.01,1936.9,1936.7,5.16325]
[1741965403302,0.01,1936.9,1936.8,5.16315]
[1741965403451,0.01,1936.9,1936.8,8.16315]
[1741965403654,0.01,1936.9,1936.8,9.50095273]
[1741965404295,0.01,1936.9,1936.8,9.552575]
[1741965404502,0.01,1936.9,1936.8,9.50095273]
[1741965405864,0.01,1936.9,1936.8,4.33780273]
[1741965406086,0.01,1936.9,1936.8,9.50095273]
[1741965407363,0.01,1936.9,1936.8,8.16315]
[1741965407568,0.01,1936.9,1936.8,3.0]
[1741965408671,5.17288,1936.9,1936.8,3.0]
[1741965408977,0.01,1936.9,1936.7,11.32337]
[1741965409178,0.01,1936.9,1936.8,8.16315]
[1741965409488,0.01,1936.9,1936.8,3.0]
[1741965409784,0.01,1936.9,1936.8,8.16315]
[1741965410369,0.01,1936.9,1936.8,3.0]
[1741965410574,5.97978,1936.9,1936.6,0.38687564]
[1741965410756,5.97978,1936.9,1936.5,5.16378]
[1741965410964,0.8169,1936.9,1936.7,3.0]
[1741965411590,0.01,1936.9,1936.7,5.16331]
[1741965411791,0.01,1936.9,1936.8,5.16315]
[1741965412489,0.01,1936.9,1936.7,3.0]
[1741965412791,5.1729,1936.9,1936.7,3.0]
[1741965412988,0.01,1936.9,1936.7,3.0]
[1741965413190,0.7708,1936.7,1936.4,5.16402]
[1741965413390,5.16422,1936.4,1936.3,0.381252]
[1741965413561,5.16422,1936.4,1936.0,5.16522]
[1741965413562,5.16396,1936.5,1936.1,5.1649]
[1741965413757,5.16459,1936.3,1935.9,5.16555]
[1741965413963,0.8111,1936.2,1935.9,5.16541]
[1741965414166,0.8111,1936.2,1935.9,10.33081]
[1741965414362,0.8111,1936.2,1935.9,5.1654]
[1741965414697,0.8111,1936.2,1935.7,6.01263786]
[1741965414698,0.05148655,1936.1,1935.5,5.16655]
[1741965414895,5.21652655,1936.1,1935.6,5.16631]
[1741965415096,0.05148655,1936.1,1935.6,3.0]
[1741965415258,5.97596,1936.2,1935.7,10.332]
[1741965415459,0.05148655,1936.1,1935.7,5.16592]
[1741965415664,0.05148655,1936.1,1935.9,3.0]
[1741965415860,5.21660655,1936.1,1935.9,3.0]
[1741965416269,0.05148655,1936.1,1935.7,5.16598]
[1741965416463,0.05148655,1936.1,1935.6,5.16624]
[1741965416673,5.16545,1936.0,1935.7,3.0]
[1741965417099,5.16556,1935.9,1935.7,3.0]
[1741965417267,5.16556,1935.9,1935.6,4.52159821]
[1741965417468,0.05148655,1936.1,1935.7,8.16605]
[1741965417689,5.97585,1936.2,1935.9,8.16542]
[1741965417866,0.05148655,1936.1,1935.9,3.0]
[1741965418069,0.05148655,1936.1,1935.7,8.16591]
[1741965418299,0.05148655,1936.1,1935.9,3.0]
[1741965418699,5.21660655,1936.1,1935.9,3.0]
[1741965419013,0.05148655,1936.1,1935.8,5.16559]
[1741965419211,0.05148655,1936.1,1935.9,3.0]
[1741965419373,5.97587,1936.2,1935.9,8.16541]
[1741965419374,0.86258655,1936.2,1935.9,8.16541]
[1741965419699,5.822,1936.1,1935.5,6.53876631]
[1741965419912,5.1661,1935.7,1935.3,6.16]
[1741965420203,0.8153,1935.8,1935.6,5.16635]
[1741965420376,0.8153,1935.8,1935.7,0.516635]
[1741965420576,0.8153,1935.8,1935.4,5.16667]
[1741965420777,5.98034,1936.1,1935.6,5.16621]
[1741965420977,5.16557,1935.9,1935.5,5.16651]
[1741965421168,5.16557,1935.9,1935.4,3.50397616]
[1741965421169,5.16593,1935.8,1935.4,8.67081616]
[1741965421373,5.23020322,1935.9,1935.4,13.83754616]
[1741965421583,5.16599,1935.8,1935.5,1.38375462]
[1741965421874,5.23012322,1935.9,1935.5,3.0]
[1741965422204,5.95,1936.2,1935.3,0.7962]
[1741965422205,0.7802,1936.8,1936.3,3.0]
[1741965422505,5.16422,1936.4,1935.9,3.0]
[1741965422731,5.16461,1936.3,1935.9,3.916]
[1741965423003,5.16502,1936.1,1935.9,3.916]
[1741965423210,5.16489,1936.2,1935.9,3.916]
[1741965423377,0.7878,1936.3,1935.9,3.94198633]
[1741965423578,0.8861599,1936.6,1936.0,0.39419863]
[1741965423798,5.16409,1936.5,1936.0,0.39419863]
[1741965423979,0.06455721,1936.4,1935.8,6.16]
[1741965424184,0.8216,1936.1,1935.8,0.39538669]
[1741965424379,5.98676,1936.1,1935.7,5.19203948]
[1741965424585,11.21649857,1936.1,1935.6,8.16613]
[1741965424780,11.15193,1936.1,1935.6,8.16613]
[1741965425002,5.16617,1935.7,1935.2,5.97732]
[1741965425175,5.16617,1935.7,1935.2,5.97727]
[1741965425380,5.16617,1935.7,1935.3,3.0]
[1741965426001,5.23065131,1935.8,1935.3,3.0]
[1741965426206,0.06458131,1935.8,1935.3,5.16704]
[1741965426410,5.16574,1935.9,1935.4,5.683334]
[1741965426701,5.16583,1935.8,1935.4,0.516704]
[1741965426902,5.23077197,1935.7,1935.2,9.37312535]
[1741965427076,5.23077197,1935.7,1935.0,11.35770862]
[1741965427077,0.822,1935.6,1935.0,0.7876]
[1741965427279,5.16718,1935.3,1935.0,0.394512]
[1741965427473,5.16773,1935.1,1934.7,5.95634]
[1741965427674,5.23215484,1935.2,1934.7,5.95634]
[1741965427874,5.16775,1935.1,1934.7,0.7876]
[1741965428179,5.23270719,1935.0,1934.6,5.94]
[1741965428379,0.06459719,1935.0,1934.6,11.10891]
[1741965428577,5.98981,1935.1,1934.7,3.02606687]
[1741965428772,5.98852,1935.4,1934.7,1.41349769]
[1741965428973,5.16729,1935.3,1934.9,0.7666]
[1741965429289,5.98852,1935.4,1935.0,3.0]
[1741965429495,6.05311212,1935.4,1935.0,3.0]
[1741965429812,5.1677,1935.1,1934.7,4.41349769]
[1741965430015,5.23205761,1935.2,1934.7,9.58209769]
[1741965430178,5.23205761,1935.2,1934.8,3.0]
[1741965430521,5.23190818,1935.3,1934.8,3.0]
[1741965430726,6.02604694,1935.2,1934.8,3.0]
[1741965430928,5.96067,1935.5,1934.8,8.16845]
[1741965431127,0.7939,1935.5,1935.1,5.16765]
[1741965431334,0.7939,1936.2,1935.8,5.16573]
[1741965431619,0.7939,1936.2,1935.8,3.0]
[1741965431931,0.7939,1936.2,1935.5,18.10342]
[1741965431932,5.16543,1936.0,1935.5,18.10342]
[1741965432132,0.06457289,1935.9,1935.6,3.0]
[1741965432410,5.16608,1935.7,1935.4,3.0]
[1741965432576,5.16608,1935.7,1935.2,12.10877]
[1741965432577,0.06458317,1935.6,1935.2,8.94888]
[1741965432777,5.92698,1935.7,1935.4,3.0]
[1741965433005,5.1657,1935.9,1935.4,8.19271482]
[1741965433316,0.81687526,1936.0,1935.6,5.16623]
[1741965433482,11.904,1936.2,1935.6,5.16623]
[1741965433483,5.16488,1936.2,1935.7,8.94107]
[1741965433677,5.16505,1936.1,1935.7,3.775]
[1741965433878,0.06456052,1936.1,1935.8,5.16569]
[1741965434081,0.7523,1936.5,1936.1,5.16484]
[1741965434281,5.97587,1936.8,1936.3,8.16448]
[1741965434482,5.16369,1936.6,1936.3,3.0]
[1741965434722,5.16369,1936.6,1936.2,5.95983]
[1741965434723,5.16369,1936.6,1936.2,0.7953]
[1741965434897,0.8126,1936.8,1936.3,0.02596599]
[1741965435114,0.06455271,1936.7,1936.0,3.0]
[1741965435316,0.06455271,1936.7,1936.3,10.3287]
[1741965435513,5.22801537,1936.7,1936.3,3.0]
[1741965435687,5.22798537,1936.7,1936.1,8.1648]
[1741965435889,5.16369,1936.6,1936.1,5.1648]
[1741965436122,0.06454537,1936.7,1936.3,3.0]
[1741965436286,0.06454772,1936.7,1936.3,8.16425]
[1741965437006,0.01,1936.9,1936.5,5.1638]
[1741965437190,0.01,1936.9,1936.4,3.7578]
[1741965437191,5.17291,1936.9,1936.4,15.08176]
[1741965437396,0.01,1936.9,1936.4,9.9178]
[1741965437592,0.01,1936.9,1936.7,5.16339]
[1741965437821,0.01,1936.9,1936.7,5.18931916]
[1741965437982,0.01,1936.9,1936.7,4.06120608]
[1741965438188,0.01,1936.9,1936.8,8.16315]
[1741965439189,0.01,1936.9,1936.8,8.18906748]
[1741965439390,0.01,1936.9,1936.8,8.16315]
[1741965439587,0.01,1936.9,1936.5,6.16]
[1741965439788,0.01,1936.9,1936.7,5.16329]
[1741965439985,0.01,1936.9,1936.8,5.71315]
[1741965440183,0.01,1936.9,1936.8,8.16315]
[1741965440407,0.7779,1937.6,1937.5,5.16112]
[1741965440623,0.1130888,1937.7,1937.4,5.16131]
[1741965440821,0.1130888,1937.7,1937.5,3.0]
[1741965441028,0.1130888,1937.7,1937.5,8.16111]
[1741965441232,0.1130888,1937.7,1937.6,3.02587981]
[1741965441433,0.1130888,1937.7,1937.4,3.898581]
[1741965441737,0.1130888,1937.7,1937.3,0.8245]
[1741965442044,0.1130888,1937.7,1937.3,8.16173]
[1741965442337,0.1130888,1937.7,1937.5,5.16123]
[1741965442639,0.1130888,1937.7,1937.6,5.16102]
[1741965443006,0.7769,1938.5,1937.8,3.0]
[1741965443204,0.7769,1938.8,1938.3,5.15912]
[1741965443511,5.93399,1939.1,1938.5,5.15845]
[1741965443717,5.15809,1938.7,1938.6,0.02580896]
[1741965443943,5.15772,1938.9,1938.2,0.7784]
[1741965444242,0.7769,1939.1,1938.8,5.1576]
[1741965444538,0.1130888,1939.6,1938.9,1.32714713]
[1741965444755,0.1130888,1939.6,1938.9,0.7856]
[1741965444756,5.15652,1939.3,1938.9,0.7856]
[1741965444955,0.17753962,1939.6,1938.2,1.18680569]
[1741965444956,5.15787,1938.8,1938.2,1.18680569]
[1741965445155,5.15755,1939.0,1938.3,5.15897]
[1741965445439,5.98735,1939.2,1938.5,0.55]
[1741965445611,5.98735,1939.2,1938.7,3.0]
[1741965445813,5.15733,1939.0,1938.7,3.0]
[1741965446208,5.98735,1939.2,1938.7,3.0]
[1741965446515,5.98735,1939.2,1938.6,5.15821]
[1741965446516,5.15706,1939.1,1938.6,3.0]
[1741965446716,5.15767,1938.9,1938.6,3.0]
[1741965446940,5.15834,1938.7,1938.3,3.0]
[1741965447145,5.15834,1938.7,1938.3,4.04028057]
[1741965447342,10.38000426,1938.9,1938.4,0.02581762]
[1741965447510,5.22169853,1939.1,1938.5,5.15859]
[1741965447712,5.15731,1939.0,1938.5,3.0]
[1741965448025,0.8304,1939.2,1938.7,3.0]
[1741965448227,5.22168388,1939.1,1938.3,4.04028057]
[1741965448426,5.22168388,1939.1,1938.5,8.15837]
[1741965448750,5.15667,1939.3,1938.8,5.15777]
[1741965449041,5.2208532,1939.4,1938.9,3.0]
[1741965449244,5.15655,1939.3,1938.9,3.0]
[1741965449430,10.3773032,1939.4,1938.9,9.055206]
[1741965449636,5.2208532,1939.4,1938.9,9.055206]
[1741965449844,5.2689788,1939.6,1939.1,8.1569]
[1741965450009,0.1130888,1939.6,1939.2,9.269]
[1741965450363,0.1130888,1939.6,1939.4,5.15605]
[1741965450559,0.1130888,1939.6,1939.5,8.671565]
[1741965451137,11.44381,1940.7,1939.5,10.485205]
[1741965451138,5.15277,1940.7,1939.5,10.485205]
[1741965451414,5.15405,1940.3,1939.7,3.0]
[1741965451725,5.15405,1940.3,1939.8,5.15516]
[1741965452131,5.15353,1940.5,1939.7,3.0]
[1741965452132,5.15442,1940.1,1939.7,3.0]
[1741965452341,5.15409,1940.3,1939.8,3.0]
[1741965452544,10.30908,1940.1,1939.7,3.0]
[1741965452729,5.1545,1940.1,1939.7,3.0]
[1741965452914,0.8036,1940.2,1939.7,8.1554]
[1741965453148,5.15423,1940.2,1939.7,9.59875]
[1741965453320,5.21805781,1940.4,1939.9,5.15477]
[1741965453516,5.95703,1940.5,1940.0,8.15439]
[1741965453727,5.15362,1940.4,1940.0,3.0]
[1741965453929,0.06442107,1940.3,1939.8,5.15517]
[1741965454243,5.95715,1940.5,1940.0,3.0]
[1741965454444,5.2175324,1940.6,1940.2,3.0]
[1741965454646,5.2174724,1940.6,1940.2,8.15408]
[1741965454848,5.96371,1940.8,1940.2,5.15408]
[1741965455151,5.15337,1940.5,1940.2,3.0]
[1741965455445,5.21733913,1940.7,1940.2,8.15405]
[1741965455615,0.8112,1940.8,1940.5,5.15311]
[1741965455821,0.01,1940.9,1940.7,5.15277]
[1741965456148,0.01,1940.9,1940.8,5.15251]
[1741965456335,5.15114,1941.4,1940.9,3.0]
[1741965456541,5.21568953,1941.3,1940.9,3.0]
[1741965456736,1.92696448,1941.3,1940.7,0.377884]
[1741965457043,1.92696448,1941.3,1940.2,8.21504]
[1741965457044,5.15322,1940.6,1940.2,0.7857]
[1741965457350,5.15371,1940.4,1940.0,5.15437]
[1741965457564,5.15332,1940.5,1940.0,10.30886]
[1741965457715,0.8259,1940.7,1940.3,5.15371]
[1741965457915,5.15299,1940.7,1940.2,5.15406]
[1741965458118,5.15315,1940.6,1940.2,10.30806]
[1741965458353,5.15257,1940.8,1940.4,5.15355]
[1741965458555,5.1529,1940.7,1940.3,5.15373]
[1741965458749,5.15324,1940.6,1940.1,8.15431]
[1741965458928,5.15324,1940.6,1940.0,0.3922556]
[1741965458929,5.15357,1940.4,1940.0,0.3922556]
[1741965459126,5.15357,1940.4,1940.0,3.0]
[1741965459329,5.15373,1940.4,1939.9,5.94055]
[1741965459557,0.8259,1940.6,1940.2,5.15389]
[1741965459732,5.15358,1940.4,1940.0,8.15449]
[1741965459922,0.8903197,1940.6,1940.2,5.15394]
[1741965459923,0.8259,1940.6,1940.2,5.15394]
[1741965460236,5.97817,1940.9,1940.1,5.15437]
[1741965460559,5.15291,1940.7,1940.3,5.15361]
[1741965460720,5.15291,1940.7,1940.2,5.154]
[1741965461082,5.15291,1940.7,1940.3,5.1537]
[1741965461226,5.15291,1940.7,1940.2,5.15406]
[1741965461422,10.30581,1940.7,1940.2,10.30805]
[1741965461659,10.30581,1940.7,1940.0,3.93344599]
[1741965461660,5.15357,1940.5,1940.1,3.0]
[1741965461852,5.15369,1940.4,1940.1,3.0]
[1741965462056,5.15302,1940.7,1940.3,5.15372]
[1741965462368,5.97825,1940.9,1940.5,5.1532]
[1741965462665,5.97825,1940.9,1940.4,5.15357]
[1741965462986,5.97825,1940.9,1940.4,5.668797]
[1741965463132,5.15171,1941.1,1940.5,8.15323]
[1741965463334,5.15251,1940.8,1940.5,3.0]
[1741965463635,5.21691859,1940.8,1940.5,3.0]
[1741965463835,5.15251,1940.8,1940.5,3.0]
[1741965464052,5.21665973,1940.9,1940.5,8.15326]
[1741965464248,5.15225,1940.9,1940.5,8.15329]
[1741965464449,5.15225,1940.9,1940.5,13.30643]
[1741965464652,5.97728,1941.2,1940.6,3.0]
[1741965464854,11.10106,1941.4,1940.9,0.8039]
[1741965465057,11.10106,1941.4,1941.0,5.15182]
[1741965465058,5.15106,1941.4,1941.0,5.15182]
[1741965465264,0.1130888,1941.5,1940.9,3.8039]
[1741965465435,0.1130888,1941.5,1940.9,5.95601]
[1741965465639,0.1130888,1941.5,1941.2,5.15119]
[1741965465835,0.1130888,1941.5,1941.0,5.747461]
[1741965466039,0.1130888,1941.5,1941.1,5.15145]
[1741965466241,0.1130888,1941.5,1941.2,10.30261]
[1741965466449,0.1130888,1941.5,1941.2,5.15126]
[1741965466665,0.1130888,1941.5,1941.3,5.15115]
[1741965466871,5.14975,1941.9,1941.3,5.15115]
[1741965466872,0.07548195,1942.6,1941.5,0.7859]
[1741965467042,0.07548195,1942.6,1942.5,5.148]
[1741965467234,0.07548195,1942.6,1942.4,5.14816]
[1741965467547,0.07548195,1942.6,1942.5,5.148]
[1741965467741,0.07548195,1942.6,1942.5,8.148]
[1741965467963,0.07548195,1942.6,1942.5,0.7859]
[1741965468169,5.22340195,1942.6,1942.2,6.248]
[1741965468373,0.07548195,1942.6,1942.5,0.4624948]
[1741965468941,5.2875709,1942.6,1942.5,0.4624948]
[1741965469455,0.07548195,1942.6,1942.5,0.4624948]
[1741965469870,5.22322195,1942.6,1942.5,0.4624948]
[1741965470243,0.07548195,1942.6,1942.5,1.2612948]
[1741965470437,0.07548195,1942.6,1942.5,9.4092948]
[1741965470702,0.1130888,1943.4,1942.7,3.0]
[1741965470846,0.1130888,1943.4,1943.3,0.7988]
[1741965471387,0.1130888,1943.4,1943.0,3.7988]
[1741965471589,0.1130888,1943.4,1943.2,3.0]
[1741965471894,0.1130888,1943.4,1943.3,15.20068]
[1741965472186,0.00290373,1943.9,1943.8,3.7988]
[1741965472417,0.00290373,1943.9,1943.4,0.7988]
[1741965472544,5.14501,1943.7,1943.4,0.7988]
[1741965472887,5.14475,1943.8,1943.3,1.97331115]
[1741965473092,5.14504,1943.7,1943.3,1.97331115]
[1741965473393,5.14562,1943.4,1943.3,1.97331115]
[1741965473683,5.14562,1943.4,1943.3,1.15e-06]
[1741965474047,5.14641,1943.1,1943.0,7.5e-07]
[1741965474248,6.24001669,1943.1,1943.0,7.5e-07]
[1741965474749,5.14752,1942.7,1942.3,1.02293132]
[1741965474968,10.29522,1942.7,1942.2,12.28858]
[1741965475171,5.14801,1942.5,1942.2,7.1399]
[1741965475371,0.06434735,1942.5,1941.9,17.8245]
[1741965475563,5.14892,1942.2,1941.9,0.7945]
[1741965475946,5.14863,1942.3,1941.9,0.7945]
[1741965476274,5.92082,1942.8,1942.0,5.14933]
[1741965476576,5.14762,1942.7,1942.3,3.0]
[1741965476950,1.837064,1943.1,1942.6,5.14762]
[1741965477168,5.14656,1943.1,1942.7,3.0]
[1741965477365,5.1467,1943.0,1942.7,3.0]
[1741965477569,5.14697,1942.9,1942.7,3.0]
[1741965477771,5.14779,1942.6,1942.4,3.0]
[1741965478071,5.14779,1942.6,1942.4,0.37996036]
[1741965478243,0.06434786,1942.9,1942.4,5.14819]
[1741965478439,5.14686,1943.0,1942.5,5.662559]
[1741965478661,0.06433318,1943.1,1942.5,3.0]
[1741965478860,10.29484,1942.8,1942.5,3.0]
[1741965479044,0.06434175,1943.0,1942.1,5.14892]
[1741965479245,5.14721,1942.8,1941.9,0.38762148]
[1741965479471,5.14866,1942.3,1941.8,17.66068]
[1741965479661,5.14765,1942.7,1942.2,5.14868]
[1741965479871,0.06434759,1942.8,1942.1,0.7748]
[1741965480047,5.14855,1942.3,1942.1,0.7748]
[1741965480243,5.14791,1942.6,1942.1,8.14895]
[1741965480449,5.14809,1942.5,1942.1,5.14901]
[1741965480778,5.662819,1942.5,1941.9,8.92096961]
[1741965480954,5.14829,1942.4,1942.1,3.0]
[1741965481273,5.14848,1942.4,1941.9,0.77146961]
[1741965481461,5.14826,1942.5,1942.0,5.14923]
[1741965481675,5.14853,1942.3,1941.9,5.92103961]
[1741965481887,0.822,1942.9,1941.9,5.92103961]
[1741965481888,5.14736,1942.8,1942.2,5.14858]
[1741965482047,10.29524,1942.7,1942.3,8.14849]
[1741965482378,5.1481,1942.5,1942.1,8.14893]
[1741965482676,5.969,1942.9,1942.0,6.44962335]
[1741965482877,5.14721,1942.8,1942.3,3.0]
[1741965483046,5.744131,1942.8,1942.4,5.14816]
[1741965483245,5.96894,1942.9,1942.5,5.14797]
[1741965483448,5.94396,1943.5,1942.7,3.7575]
[1741965483678,5.14456,1943.8,1943.0,3.0]
[1741965483879,5.14537,1943.5,1943.1,5.14625]
[1741965484078,5.14513,1943.6,1943.3,3.0]
[1741965484280,5.14551,1943.5,1943.1,5.14622]
[1741965484461,5.1452,1943.6,1943.1,1.329287]
[1741965484662,5.1452,1943.6,1943.2,8.146]
[1741965484862,10.29051,1943.6,1943.2,8.146]
[1741965485066,5.14575,1943.4,1943.1,1.5123004]
[1741965485385,0.06431962,1943.7,1943.3,5.14579]
[1741965485589,5.14549,1943.5,1943.1,6.6586904]
[1741965485790,5.14565,1943.4,1943.1,4.5123004]
[1741965486170,5.20915962,1943.7,1943.3,5.14579]
[1741965486371,5.1452,1943.6,1943.2,8.96505]
[1741965486568,5.14509,1943.6,1943.3,5.14588]
[1741965487057,5.94594373,1943.9,1943.4,5.1455]
[1741965487394,5.14169,1944.9,1943.9,3.0]
[1741965487590,0.005,1945.2,1944.6,3.0]
[1741965487897,0.005,1945.2,1944.5,9.41127335]
[1741965487898,0.005,1945.2,1944.8,8.14173]
[1741965488194,0.005,1945.2,1944.8,3.0]
[1741965488394,0.005,1945.2,1945.1,8.14112]
[1741965488609,0.005,1945.2,1945.1,8.96022]
[1741965488800,0.005,1945.2,1944.9,0.46344969]
[1741965489100,5.14138,1945.0,1944.9,0.46344969]
[1741965489320,0.06427779,1945.0,1944.9,0.46344969]
[1741965489463,5.14218,1944.7,1944.6,1.5123004]
[1741965489664,5.656398,1944.7,1944.6,1.5123004]
[1741965489884,5.14281,1944.5,1944.1,0.3858425]
[1741965490112,5.14429,1943.9,1943.8,0.77146961]
[1741965490283,5.14323,1944.3,1943.8,0.77146961]
[1741965490284,5.14399,1944.1,1943.8,0.77146961]
[1741965490619,5.93319,1943.9,1943.8,0.77146961]
[1741965490819,5.14622,1943.2,1942.8,0.7982]
[1741965490968,5.14622,1943.2,1942.5,0.7982]
[1741965490969,5.14725,1942.8,1942.5,0.7982]
[1741965491300,0.7889,1943.7,1942.6,3.44962335]
[1741965491598,5.14538,1943.5,1943.0,5.94471]
[1741965491802,5.14538,1943.5,1942.7,3.44962335]
[1741965491803,0.06432449,1943.4,1942.9,6.514]
[1741965492010,0.06432449,1943.4,1942.7,4.26962335]
[1741965492011,0.8186,1944.0,1943.4,5.14538]
[1741965492210,0.06430693,1944.3,1943.6,5.14509]
[1741965492508,5.14286,1944.5,1943.6,5.14509]
[1741965492509,5.14364,1944.2,1943.6,12.49576]
[1741965492672,5.14468,1943.8,1943.4,5.14545]
[1741965492873,5.14525,1943.6,1943.3,6.543]
[1741965493208,5.14499,1943.7,1943.1,17.017]
[1741965493500,5.14733,1942.8,1942.6,1.04915698]
[1741965493798,5.14641,1943.1,1942.3,3.84537813]
[1741965493998,5.14782,1942.6,1942.0,5.14917]
[1741965494210,5.14848,1942.4,1942.0,5.14918]
[1741965494378,5.1488,1942.2,1941.8,5.14979]
[1741965494702,5.21231608,1942.6,1941.7,5.53471175]
[1741965494889,0.06436608,1942.6,1941.9,0.7512]
[1741965495096,5.14896,1942.2,1941.7,6.96169175]
[1741965495292,5.14918,1942.1,1941.7,6.96169175]
[1741965495601,5.21372609,1942.0,1941.5,12.47962]
[1741965495807,5.21372609,1942.0,1941.3,8.60062335]
[1741965495808,5.14994,1941.8,1941.3,8.60062335]
[1741965496016,5.14975,1941.9,1941.5,3.0]
[1741965496222,0.87137356,1942.1,1941.4,5.15092]
[1741965496374,0.87137356,1942.1,1941.3,0.38987513]
[1741965496375,0.06437427,1942.0,1941.7,5.14989]
[1741965496704,0.06437357,1942.0,1941.2,9.40298335]
[1741965496906,5.15024,1941.7,1941.2,9.40295335]
[1741965497076,5.14986,1941.8,1941.3,3.0]
[1741965497277,0.06438208,1941.7,1941.2,4.25162335]
[1741965497477,5.15003,1941.8,1941.3,10.30213]
[1741965497713,0.0773,1941.9,1941.3,5.15102]
[1741965497919,5.22708,1941.9,1941.4,5.1507]
[1741965498091,0.0773,1941.9,1941.6,5.15038]
[1741965498279,0.0773,1941.9,1941.7,5.14999]
[1741965498584,0.0773,1941.9,1941.7,8.15003]
[1741965498772,0.0773,1941.9,1941.7,4.330039]
[1741965498976,0.0773,1941.9,1941.8,5.14986]
[1741965499195,0.0773,1941.9,1941.8,12.40598335]
[1741965499423,0.0773,1941.9,1941.8,3.8065]
[1741965499619,0.0773,1941.9,1941.8,5.95636]
[1741965499788,0.0773,1941.9,1941.8,13.68880948]
[1741965501012,0.0773,1941.9,1941.8,10.23918613]
[1741965501194,0.0773,1941.9,1941.7,10.31386927]